bitfinex-derivatives/quotes_ETHF0:USTF0_20240924
["timestamp","ask_amount","ask_price","bid_price","bid_amount"]
[1727193016584,0.38222,2616.4,2616.1,5.14655528]
[1727193016880,0.38226,2616.1,2616.0,3.65033528]
[1727193017284,0.38226,2616.2,2616.1,0.38226]
[1727193017478,0.38226,2616.1,2616.0,3.65032528]
[1727193017879,0.38226,2616.1,2616.0,2.2713]
[1727193018292,0.38226,2616.1,2616.0,2.65358]
[1727193018773,0.38226,2616.1,2616.0,2.2713]
[1727193018977,2.83374,2616.2,2615.9,1.95395528]
[1727193019176,0.38229,2615.9,2615.8,0.99675528]
[1727193019386,0.38231,2615.8,2615.7,5.04307528]
[1727193019592,0.3823,2615.9,2615.8,0.3823]
[1727193019787,0.38231,2615.8,2615.7,6.59644654]
[1727193019978,0.38231,2615.8,2615.7,7.19414986]
[1727193020282,0.38231,2615.8,2615.7,6.59644654]
[1727193020688,2.25248,2615.8,2615.7,4.20644654]
[1727193020882,2.25248,2615.8,2615.7,3.2078]
[1727193020883,7.03145,2615.8,2615.7,3.2078]
[1727193021301,6.07568,2615.8,2615.7,3.2078]
[1727193021497,1.29671,2615.8,2615.7,5.5978]
[1727193021680,1.29671,2615.8,2615.7,2.39]
[1727193022499,2.25248,2615.8,2615.7,2.39]
[1727193022684,2.25248,2615.8,2615.6,0.9878]
[1727193022685,0.38232,2615.7,2615.6,0.9878]
[1727193022881,0.38234,2615.6,2615.5,2.39]
[1727193023085,0.38234,2615.6,2615.5,2.77235]
[1727193023491,0.38234,2615.6,2615.5,2.39]
[1727193023691,0.38235,2615.5,2615.4,3.26204654]
[1727193023990,0.38235,2615.5,2615.4,2.64576]
[1727193024284,1.33823,2615.5,2615.4,0.9894]
[1727193024490,1.33823,2615.5,2615.3,4.36464654]
[1727193024693,2.26168,2615.4,2615.3,0.976]
[1727193024997,2.26168,2615.4,2615.1,6.03445654]
[1727193024998,0.38239,2615.2,2615.1,6.03445654]
[1727193025196,0.38239,2615.2,2615.1,7.43844436]
[1727193025383,0.9234,2615.4,2615.1,11.37918014]
[1727193025582,1.30577,2615.4,2615.3,2.77238]
[1727193025983,0.38238,2615.3,2615.2,0.99882094]
[1727193026398,0.38238,2615.3,2615.2,1.38121094]
[1727193026693,0.38238,2615.3,2615.2,0.38239]
[1727193028290,1.30578,2615.4,2615.3,0.38238]
[1727193028795,0.38236,2615.5,2615.4,0.38236]
[1727193029301,0.38236,2615.5,2615.4,1.30516]
[1727193029493,0.38234,2615.6,2615.5,0.38234]
[1727193033506,0.38235,2615.5,2615.4,1.30516]
[1727193033796,0.38236,2615.4,2615.3,0.38238]
[1727193034595,0.38238,2615.3,2615.2,2.31661094]
[1727193034797,1.38628,2615.3,2615.2,2.31661094]
[1727193034993,2.34224,2615.3,2615.2,1.93422094]
[1727193035194,2.34224,2615.3,2615.1,0.99882094]
[1727193035195,2.29437,2615.2,2615.1,0.99882094]
[1727193035496,0.38244,2614.9,2614.8,0.99882094]
[1727193035692,0.38245,2614.8,2614.7,4.20662094]
[1727193035996,2.34249,2614.8,2614.7,3.2078]
[1727193036397,1.38635,2614.8,2614.7,3.2078]
[1727193037810,1.38635,2614.8,2614.7,5.5978]
[1727193038202,0.38245,2614.8,2614.7,5.5978]
[1727193038403,1.29581,2615.1,2614.9,0.38243]
[1727193038602,0.38242,2615.0,2614.9,2.39]
[1727193038806,0.9134,2615.1,2614.8,1.966]
[1727193038807,0.38244,2614.9,2614.8,1.966]
[1727193039609,0.38244,2614.9,2614.8,2.34845]
[1727193039801,0.38244,2614.9,2614.8,1.966]
[1727193040404,0.9134,2615.1,2614.9,0.38243]
[1727193040405,1.29582,2615.1,2614.9,0.38243]
[1727193040707,1.29582,2615.1,2614.8,1.966]
[1727193040708,0.38244,2614.9,2614.8,1.966]
[1727193042310,0.38244,2614.9,2614.8,2.34845]
[1727193042509,0.38244,2614.9,2614.8,1.966]
[1727193043103,0.38243,2615.0,2614.9,0.38243]
[1727193043303,0.9134,2615.1,2614.9,2.39]
[1727193043500,0.9134,2615.1,2615.0,0.38242]
[1727193043501,1.29582,2615.1,2615.0,0.38242]
[1727193043702,1.29582,2615.1,2614.8,1.966]
[1727193043703,0.9134,2615.1,2614.8,2.34845]
[1727193043907,0.38244,2614.9,2614.8,2.34845]
[1727193044115,0.38244,2614.9,2614.8,0.9597]
[1727193047111,0.38244,2614.9,2614.8,1.34215]
[1727193047611,0.38244,2614.9,2614.8,0.9597]
[1727193048017,0.38244,2614.9,2614.8,1.34215]
[1727193048319,0.38244,2614.9,2614.8,0.9597]
[1727193049415,0.38244,2614.9,2614.8,1.34215]
[1727193049620,0.38244,2614.9,2614.8,0.9597]
[1727193050012,0.38244,2614.9,2614.8,1.34215]
[1727193051439,1.29582,2615.1,2615.0,0.38242]
[1727193051834,0.38244,2615.0,2614.9,0.38243]
[1727193052035,0.38244,2614.9,2614.8,0.9597]
[1727193052740,0.38245,2614.8,2614.7,3.2078]
[1727193053338,0.38245,2614.8,2614.7,3.59027]
[1727193056440,0.38245,2614.9,2614.8,0.38244]
[1727193056942,0.38245,2614.9,2614.8,1.36324]
[1727193057742,0.38245,2614.9,2614.8,0.9808]
[1727193057933,0.38243,2615.0,2614.8,0.9808]
[1727193058131,0.9559,2615.5,2615.1,0.38241]
[1727193058336,0.38239,2615.3,2615.2,0.38238]
[1727193058537,0.38239,2615.3,2615.2,1.38578]
[1727193058739,1.37637,2615.4,2615.3,0.38238]
[1727193060547,0.9559,2615.5,2615.4,0.38236]
[1727193060548,0.38236,2615.5,2615.4,0.38236]
[1727193060753,0.9571,2615.6,2615.2,1.0034]
[1727193060940,0.9571,2615.6,2615.5,0.38235]
[1727193061144,0.994,2615.7,2615.6,0.38234]
[1727193062039,0.994,2615.7,2615.6,2.28554]
[1727193062244,0.3823,2615.9,2615.7,0.38232]
[1727193062446,0.38231,2615.9,2615.7,0.38232]
[1727193062843,1.9637,2616.0,2615.9,0.38229]
[1727193064438,0.38227,2616.1,2615.9,0.38229]
[1727193064639,0.38227,2616.1,2615.6,5.111]
[1727193064849,0.38227,2616.1,2615.9,0.38228]
[1727193065646,0.38228,2616.0,2615.9,0.38228]
[1727193067142,0.38228,2616.0,2615.8,0.3823]
[1727193067344,1.8969,2616.2,2615.8,0.3823]
[1727193067345,2.85255,2616.2,2615.8,0.3823]
[1727193067548,0.38229,2616.0,2615.6,5.111]
[1727193067753,0.38229,2616.0,2615.9,0.38229]
[1727193067940,0.38227,2616.1,2616.0,0.38227]
[1727193068340,0.38227,2616.1,2616.0,0.38228]
[1727193068741,0.9174,2616.2,2616.1,0.38226]
[1727193069147,0.38229,2616.0,2615.6,6.10982094]
[1727193069750,0.38227,2616.1,2616.0,0.38227]
[1727193070454,0.38229,2615.9,2615.7,0.38232]
[1727193070751,0.38231,2615.8,2615.7,1.64931]
[1727193071153,0.3823,2615.9,2615.8,0.3823]
[1727193071740,0.38231,2615.8,2615.7,1.64931]
[1727193072540,0.3823,2615.9,2615.8,0.3823]
[1727193073552,1.38798,2616.1,2616.0,0.38228]
[1727193073854,2.27726,2616.2,2616.1,0.38226]
[1727193074158,0.9174,2616.2,2616.1,0.38226]
[1727193074356,6.28254308,2616.5,2616.1,3.8224]
[1727193074654,4.94593308,2616.5,2616.4,0.38222]
[1727193074855,3.2078,2616.7,2616.6,0.38219]
[1727193075447,0.9818,2617.0,2616.8,0.38215]
[1727193075756,0.9818,2617.0,2616.7,0.38217]
[1727193076056,1.36394,2617.0,2616.8,1.37336]
[1727193076454,0.9818,2617.0,2616.8,1.37336]
[1727193076962,1.36394,2617.0,2616.8,1.37336]
[1727193077757,1.36394,2617.0,2616.8,0.9912]
[1727193077959,0.38215,2616.9,2616.8,0.9912]
[1727193078358,0.9818,2617.0,2616.8,0.9912]
[1727193078549,1.36394,2617.0,2616.8,1.37336]
[1727193078753,1.36394,2617.0,2616.8,0.9912]
[1727193079248,1.36394,2617.0,2616.8,1.37336]
[1727193079858,1.36394,2617.0,2616.8,1.37335]
[1727193080067,0.38215,2616.9,2616.8,0.9912]
[1727193080257,1.36394,2617.0,2616.8,1.37336]
[1727193080663,0.38215,2616.9,2616.8,0.9912]
[1727193080966,0.9818,2617.0,2616.7,0.38217]
[1727193080967,0.38217,2616.8,2616.7,0.38217]
[1727193081262,1.36395,2617.0,2616.5,4.1813]
[1727193081466,0.38215,2616.9,2616.8,0.38215]
[1727193081667,5.1262,2617.1,2616.6,2.39]
[1727193081668,0.9544,2617.1,2616.6,2.39]
[1727193081865,0.38211,2617.2,2617.1,0.38211]
[1727193082053,2.39,2617.2,2616.6,4.384422]
[1727193082253,0.38222,2616.4,2616.3,1.35573]
[1727193082458,0.38223,2616.3,2616.2,0.9346]
[1727193082656,0.38226,2616.1,2616.0,0.9735]
[1727193082860,3.34568,2616.1,2615.6,0.38233]
[1727193083064,3.34568,2616.1,2615.7,1.266]
[1727193083065,0.38232,2615.8,2615.7,1.266]
[1727193083270,0.38231,2615.8,2615.7,1.266]
[1727193083566,2.39,2616.1,2615.7,1.64831]
[1727193083567,0.38229,2615.9,2615.7,1.64831]
[1727193083953,0.38229,2615.9,2615.8,1.266]
[1727193084158,0.38229,2615.9,2615.5,3.2078]
[1727193084159,0.38233,2615.7,2615.6,1.266]
[1727193085155,2.39,2615.7,2615.2,3.2078]
[1727193085354,2.39,2615.7,2614.9,0.089]
[1727193085355,0.38242,2615.0,2614.9,0.089]
[1727193085663,5.5978,2615.3,2614.6,3.2078]
[1727193085664,0.38241,2615.1,2614.6,3.2078]
[1727193085860,0.38243,2615.0,2614.5,0.9238]
[1727193086165,2.39,2615.1,2614.5,2.1898]
[1727193086369,0.38242,2615.0,2614.5,2.1898]
[1727193086553,2.39,2615.1,2614.5,2.1898]
[1727193086761,0.38244,2614.9,2614.5,2.1898]
[1727193086959,0.38244,2614.9,2614.5,0.9238]
[1727193088265,0.38245,2614.8,2614.5,0.9238]
[1727193088455,0.38248,2614.6,2614.2,3.2078]
[1727193088654,3.59029,2614.6,2614.1,5.4027]
[1727193088858,3.59029,2614.6,2614.3,4.40783561]
[1727193089159,0.3825,2614.5,2614.2,4.40783561]
[1727193089462,0.3825,2614.5,2614.1,2.96001575]
[1727193089765,3.59029,2614.6,2614.2,4.08514998]
[1727193090258,0.3825,2614.5,2614.2,4.08514998]
[1727193090457,2.39,2614.5,2614.2,4.08514998]
[1727193090662,3.2078,2614.6,2614.1,0.76511575]
[1727193090663,5.5978,2614.3,2614.1,0.76511575]
[1727193090866,0.38254,2614.2,2614.1,0.76511575]
[1727193091259,3.2078,2614.3,2614.1,0.76511575]
[1727193091566,0.38248,2614.6,2614.2,3.8256]
[1727193091762,3.2078,2615.0,2614.3,2.39]
[1727193091972,0.38246,2614.8,2614.3,3.77972]
[1727193092161,0.38246,2614.8,2614.4,0.38251]
[1727193092355,2.39,2614.9,2614.3,1.0072]
[1727193092667,0.3825,2614.5,2614.3,1.0072]
[1727193092866,0.38249,2614.6,2614.3,1.0072]
[1727193094470,3.59028,2614.7,2614.3,1.38972]
[1727193094662,0.38249,2614.6,2614.3,1.38972]
[1727193094965,3.2078,2614.7,2614.3,1.0072]
[1727193095268,3.2078,2614.7,2614.5,0.3825]
[1727193095468,3.59028,2614.7,2614.4,0.3825]
[1727193096270,3.2078,2614.7,2614.5,0.3825]
[1727193097571,3.59027,2614.7,2614.5,0.38249]
[1727193098372,3.2078,2614.7,2614.5,0.38249]
[1727193100081,3.59027,2614.7,2614.5,0.38249]
[1727193100263,3.2078,2614.7,2614.5,0.38249]
[1727193100665,0.38248,2614.6,2614.3,1.0072]
[1727193100866,3.59028,2614.7,2614.4,0.3825]
[1727193101070,3.59028,2614.7,2614.3,1.0072]
[1727193101071,3.2078,2614.7,2614.5,0.3825]
[1727193101276,3.2078,2614.7,2614.3,1.0072]
[1727193101277,2.39,2614.6,2614.3,1.0072]
[1727193101471,0.38251,2614.5,2614.3,1.0072]
[1727193101769,0.38251,2614.4,2614.3,1.0072]
[1727193102374,0.38251,2614.5,2614.3,1.0072]
[1727193103270,0.38251,2614.5,2614.3,1.38972]
[1727193106081,0.3825,2614.5,2614.3,1.38972]
[1727193106580,2.39,2614.6,2614.3,1.0072]
[1727193106786,0.3825,2614.5,2614.3,1.38972]
[1727193107869,2.39,2614.6,2614.3,1.38972]
[1727193108072,0.3825,2614.5,2614.3,1.38972]
[1727193108275,0.38251,2614.4,2614.3,1.0072]
[1727193108683,2.39,2614.6,2614.3,1.0072]
[1727193108985,2.39,2614.6,2614.3,1.38972]
[1727193109185,3.2078,2614.7,2614.5,0.3825]
[1727193109386,0.38248,2614.6,2614.4,0.9319]
[1727193109878,3.59028,2614.7,2614.5,0.38249]
[1727193110082,3.59028,2614.7,2614.4,0.9319]
[1727193110083,3.59027,2614.7,2614.6,0.38248]
[1727193110280,0.38247,2614.7,2614.6,0.38248]
[1727193111284,0.38246,2614.8,2614.4,0.9319]
[1727193111481,3.2078,2614.8,2614.4,0.9319]
[1727193111685,0.95601,2615.2,2615.0,0.38241]
[1727193111686,3.2078,2615.1,2615.0,0.38241]
[1727193112290,5.33042265,2615.5,2615.3,0.38237]
[1727193112291,4.94806265,2615.5,2615.3,0.38237]
[1727193112588,4.94806265,2615.5,2615.2,0.38239]
[1727193112782,0.38237,2615.4,2615.1,1.2905]
[1727193113286,0.38238,2615.3,2615.1,1.2905]
[1727193113785,2.77237,2615.4,2615.2,0.38239]
[1727193114287,0.38237,2615.4,2615.2,0.38239]
[1727193114584,5.33042265,2615.5,2615.2,0.38239]
[1727193115287,5.33042265,2615.5,2615.3,0.38238]
[1727193115978,4.94806265,2615.5,2615.3,0.38237]
[1727193116281,4.94806265,2615.5,2615.1,0.9081]
[1727193116781,4.94806265,2615.5,2615.4,0.38236]
[1727193117777,5.33042265,2615.5,2615.2,0.38239]
[1727193117983,0.38237,2615.4,2615.2,0.38239]
[1727193118184,5.33042265,2615.5,2615.3,0.38237]
[1727193118989,5.33042265,2615.5,2615.1,1.2905]
[1727193118990,0.38238,2615.3,2615.1,1.2905]
[1727193119184,0.38239,2615.2,2615.1,0.9081]
[1727193119387,0.38241,2615.1,2615.0,3.2078]
[1727193120078,2.39,2615.2,2614.9,0.9634]
[1727193120391,0.38241,2615.1,2614.9,0.9634]
[1727193120580,2.39,2615.2,2614.9,0.9634]
[1727193120581,0.38242,2615.0,2614.9,0.9634]
[1727193120983,0.38244,2614.9,2614.8,0.9408]
[1727193122287,0.9561,2614.9,2614.5,0.38249]
[1727193122493,0.38246,2614.8,2614.6,0.38248]
[1727193122687,0.38247,2614.7,2614.6,0.38248]
[1727193122883,0.38246,2614.8,2614.7,0.38247]
[1727193123281,0.38246,2614.8,2614.6,0.38247]
[1727193123885,5.5978,2615.0,2614.7,0.38246]
[1727193124080,3.2078,2615.0,2614.8,0.38244]
[1727193124589,3.2078,2615.0,2614.7,0.38246]
[1727193124590,0.38245,2614.9,2614.7,0.38246]
[1727193124892,0.38245,2614.8,2614.7,0.38246]
[1727193125784,0.38245,2614.9,2614.8,0.38245]
[1727193126390,3.2078,2615.0,2614.4,6.3879]
[1727193126391,0.38245,2614.8,2614.7,0.38246]
[1727193126584,0.38245,2614.9,2614.8,0.38245]
[1727193126785,3.2078,2615.0,2614.7,0.38246]
[1727193127081,3.2078,2615.0,2614.4,6.3879]
[1727193127287,0.38248,2614.7,2614.6,0.38248]
[1727193127494,0.95611,2614.9,2614.4,5.1249]
[1727193127885,0.38246,2614.8,2614.6,0.38247]
[1727193128286,0.38247,2614.7,2614.6,0.38247]
[1727193128481,0.38247,2614.7,2614.4,2.91592094]
[1727193128482,0.38246,2614.8,2614.7,0.38246]
[1727193128988,3.2078,2615.0,2614.7,0.38246]
[1727193129195,3.2078,2615.0,2614.4,3.29843094]
[1727193129196,0.9561,2614.9,2614.4,3.29843094]
[1727193129391,0.3825,2614.5,2614.4,3.29916184]
[1727193129588,0.3825,2614.5,2614.4,3.89714494]
[1727193129787,0.3825,2614.5,2614.4,3.51463494]
[1727193129991,3.2078,2615.0,2614.7,0.38247]
[1727193130283,0.38245,2614.8,2614.7,0.38247]
[1727193130688,0.38245,2614.8,2614.5,0.99969083]
[1727193130689,0.38244,2614.9,2614.8,0.38245]
[1727193130890,3.2078,2615.0,2614.7,0.38246]
[1727193131095,0.38246,2614.8,2614.7,0.38246]
[1727193131486,0.38247,2614.7,2614.6,1.38216083]
[1727193131684,0.38247,2614.7,2614.4,3.41489232]
[1727193131685,0.38246,2614.8,2614.7,0.38246]
[1727193131884,4.16388,2615.0,2614.6,0.99969083]
[1727193132088,0.38245,2614.8,2614.7,0.38247]
[1727193132801,0.38247,2614.7,2614.6,0.99969083]
[1727193132997,0.38247,2614.7,2614.4,3.41489232]
[1727193132998,0.38244,2614.9,2614.7,0.38246]
[1727193133501,4.16388,2615.0,2614.7,0.38246]
[1727193133502,0.38245,2614.8,2614.7,0.38246]
[1727193135004,0.38245,2614.8,2614.5,0.99969083]
[1727193135203,0.38245,2614.8,2614.6,0.99969083]
[1727193135698,0.38245,2614.9,2614.8,0.38245]
[1727193135901,3.2078,2615.0,2614.6,0.99969083]
[1727193136204,0.38244,2614.9,2614.8,0.38244]
[1727193137101,0.38247,2614.7,2614.6,1.38216083]
[1727193137500,3.2078,2615.0,2614.6,0.99969083]
[1727193137701,3.72865,2614.7,2614.6,0.99969083]
[1727193138004,0.3825,2614.5,2614.4,2.91679083]
[1727193138203,0.3825,2614.5,2614.4,1.9171]
[1727193138505,0.38251,2614.4,2614.3,0.99969083]
[1727193138808,0.38253,2614.3,2614.2,2.38752083]
[1727193138996,0.38253,2614.3,2614.2,2.60303293]
[1727193139311,0.38253,2614.3,2614.2,2.00499083]
[1727193140402,0.38253,2614.3,2614.2,2.38753083]
[1727193140605,0.38252,2614.4,2614.3,0.38251]
[1727193141200,0.95622,2614.6,2614.2,2.00499083]
[1727193141506,0.38253,2614.3,2614.2,2.00499083]
[1727193141704,1.33885,2614.3,2614.2,0.99969083]
[1727193142008,1.3389,2614.2,2614.1,0.99969083]
[1727193142209,1.3389,2614.2,2613.9,2.46459232]
[1727193142210,0.38257,2614.0,2613.9,1.96649083]
[1727193142502,2.77257,2614.0,2613.9,0.9668]
[1727193142809,0.3826,2613.8,2613.7,0.99969083]
[1727193143100,0.95654,2613.7,2613.5,1.98609083]
[1727193143305,0.95654,2613.7,2613.5,0.9864]
[1727193144293,0.38263,2613.6,2613.5,0.9864]
[1727193145298,3.2078,2613.8,2613.5,0.9864]
[1727193145505,3.2078,2613.8,2613.7,0.38261]
[1727193145902,0.38256,2614.1,2614.0,0.38257]
[1727193146204,0.38256,2614.1,2613.6,6.60874881]
[1727193146205,0.38256,2614.1,2613.8,0.9631]
[1727193146500,0.38256,2614.1,2614.0,0.38257]
[1727193146703,0.38256,2614.1,2613.9,0.9889]
[1727193147904,3.2078,2614.0,2613.9,0.9889]
[1727193148103,0.3826,2613.9,2613.7,0.3826]
[1727193148496,0.3826,2613.9,2613.8,0.3826]
[1727193149003,0.3826,2613.9,2613.7,0.3826]
[1727193149205,3.2078,2614.0,2613.7,0.3826]
[1727193149206,0.3826,2613.8,2613.7,0.3826]
[1727193149406,0.38259,2613.9,2613.8,0.3826]
[1727193150391,3.2078,2614.0,2613.6,0.9105]
[1727193150392,3.59038,2614.0,2613.9,0.38258]
[1727193150906,3.59038,2614.0,2613.6,0.9105]
[1727193151404,3.59038,2614.0,2613.9,0.38258]
[1727193151605,3.2078,2614.0,2613.9,0.38258]
[1727193151808,3.3463,2614.4,2614.0,0.38256]
[1727193151809,0.38256,2614.1,2614.0,0.38256]
[1727193152001,0.38255,2614.2,2614.1,1.0033]
[1727193153500,0.38255,2614.2,2614.1,1.38585]
[1727193153698,0.38255,2614.2,2614.1,1.0033]
[1727193153896,0.38255,2614.2,2614.1,1.38585]
[1727193155808,0.38255,2614.2,2614.1,1.0033]
[1727193157500,0.38255,2614.2,2614.1,1.38585]
[1727193160130,3.2078,2614.5,2614.1,1.0033]
[1727193160418,3.2078,2614.5,2614.4,0.38251]
[1727193160718,3.2078,2615.1,2614.4,7.50355626]
[1727193160911,3.2078,2615.1,2614.7,2.39]
[1727193161111,3.2078,2615.1,2615.0,0.38242]
[1727193161518,3.2078,2615.1,2615.0,4.20642]
[1727193161707,4.94806265,2615.5,2615.0,16.22197347]
[1727193161912,4.94806265,2615.5,2615.4,0.38236]
[1727193162113,4.94806265,2615.5,2615.3,0.38237]
[1727193162312,4.94806265,2615.5,2615.4,1.38166]
[1727193163619,4.94806265,2615.5,2615.4,0.9993]
[1727193163818,4.94806265,2615.5,2615.4,1.38166]
[1727193164214,4.94806265,2615.5,2615.4,0.9993]
[1727193164913,4.94806265,2615.5,2615.4,1.38166]
[1727193165115,4.94806265,2615.5,2615.4,0.9993]
[1727193166917,4.94806265,2615.5,2615.0,4.4658]
[1727193167118,2.77237,2615.4,2615.0,5.76371]
[1727193168008,2.77237,2615.4,2615.1,0.3824]
[1727193168725,0.38238,2615.3,2615.0,5.76372]
[1727193169420,3.2078,2615.1,2615.0,0.9155]
[1727193169613,3.2078,2615.1,2615.0,1.29792]
[1727193170018,0.38237,2615.4,2615.2,0.38239]
[1727193170331,8.15586265,2615.5,2615.0,0.9155]
[1727193170520,8.15586265,2615.5,2615.2,0.38238]
[1727193170720,8.53822265,2615.5,2615.3,0.38238]
[1727193170923,8.53822265,2615.5,2615.0,0.9155]
[1727193170924,8.15586265,2615.5,2615.0,0.9155]
[1727193171125,8.15586265,2615.5,2615.0,3.3055]
[1727193171321,8.15586265,2615.5,2615.1,4.30744979]
[1727193171517,8.15586265,2615.5,2615.3,0.38237]
[1727193171718,8.53821265,2615.5,2615.3,0.38237]
[1727193171925,8.53821265,2615.5,2615.1,4.30744979]
[1727193172123,8.53821265,2615.5,2615.3,0.38237]
[1727193172330,8.53822265,2615.5,2615.1,4.30744979]
[1727193172620,8.53822265,2615.5,2615.3,0.38237]
[1727193173631,3.59016,2615.5,2615.3,0.38237]
[1727193175624,3.59016,2615.5,2615.3,0.38238]
[1727193175922,0.38236,2615.4,2615.3,0.38238]
[1727193177725,3.59016,2615.5,2615.3,0.38238]
[1727193178228,0.38236,2615.4,2615.3,0.38238]
[1727193179714,3.2078,2615.5,2615.1,4.30744979]
[1727193179715,3.59016,2615.5,2615.1,4.30744979]
[1727193179918,0.38236,2615.4,2615.3,0.38237]
[1727193181120,1.94957,2615.9,2615.1,4.30744979]
[1727193181121,3.2078,2615.8,2615.1,4.30744979]
[1727193181317,3.59011,2615.8,2615.7,0.38232]
[1727193181523,0.38231,2615.8,2615.7,0.38232]
[1727193181729,6.55348,2616.1,2615.7,6.2132]
[1727193181730,3.2078,2616.1,2615.7,6.2132]
[1727193182027,3.2078,2616.1,2616.0,0.38228]
[1727193182227,0.9142,2616.6,2616.4,0.38222]
[1727193182835,0.9142,2616.6,2616.1,3.3738]
[1727193183130,0.38223,2616.3,2616.1,3.3738]
[1727193183330,0.38222,2616.4,2616.3,0.38223]
[1727193183531,0.38222,2616.4,2616.2,0.38224]
[1727193183733,0.38222,2616.4,2616.1,0.9838]
[1727193183734,0.38222,2616.4,2616.3,0.38223]
[1727193183937,3.34546,2616.7,2616.3,0.38223]
[1727193183938,3.2078,2616.8,2616.7,0.38217]
[1727193184231,8.80007,2617.9,2617.0,0.38213]
[1727193184232,3.2078,2617.1,2617.0,0.38213]
[1727193184423,3.2078,2617.1,2617.0,1.64013]
[1727193184627,3.58983,2617.7,2617.2,0.3821]
[1727193184825,3.2078,2617.7,2617.2,0.3821]
[1727193185031,3.2078,2617.7,2617.1,2.39]
[1727193185032,3.2078,2617.7,2617.3,2.39]
[1727193185225,3.2078,2617.7,2617.6,0.38204]
[1727193185429,0.38197,2618.1,2617.5,0.38205]
[1727193185628,0.38197,2618.1,2617.4,0.9751]
[1727193185629,5.5978,2618.1,2617.4,0.9751]
[1727193185931,3.2078,2618.1,2617.8,2.39]
[1727193186140,3.2078,2618.1,2617.6,2.39]
[1727193186326,3.2078,2618.1,2617.7,2.1952]
[1727193186527,3.2078,2618.1,2617.8,4.08001104]
[1727193186732,5.5978,2618.1,2617.7,2.1952]
[1727193187028,5.97977,2618.1,2617.7,2.1952]
[1727193188133,5.97978,2618.1,2617.7,2.1952]
[1727193188328,5.5978,2618.1,2617.7,0.9372]
[1727193188629,0.38199,2618.0,2617.7,0.9372]
[1727193188830,2.77201,2617.9,2617.6,1.258]
[1727193189039,3.58981,2617.8,2617.6,1.258]
[1727193189924,3.2078,2617.8,2617.6,1.258]
[1727193190127,3.2078,2617.8,2617.6,1.64004]
[1727193190333,3.2078,2617.8,2617.7,0.38203]
[1727193190530,3.2078,2617.8,2617.6,1.64004]
[1727193190731,3.58982,2617.8,2617.6,1.258]
[1727193191031,3.58982,2617.8,2617.5,1.63905]
[1727193191032,3.2078,2617.8,2617.5,1.63905]
[1727193191231,1.9034,2618.1,2617.6,0.38203]
[1727193191232,5.1112,2618.1,2617.6,0.38203]
[1727193191428,5.1112,2618.1,2617.5,5.27753077]
[1727193191638,0.38201,2617.9,2617.5,5.27753077]
[1727193192142,0.38201,2617.8,2617.5,5.65959077]
[1727193192333,3.58978,2618.1,2617.5,7.66753077]
[1727193192531,3.2078,2618.1,2617.8,0.38201]
[1727193193044,3.58977,2618.1,2617.8,0.38201]
[1727193193339,0.382,2618.0,2617.6,0.9846]
[1727193193542,0.382,2618.0,2617.7,0.38202]
[1727193194043,0.38202,2617.8,2617.5,0.38205]
[1727193194244,0.38202,2617.8,2617.5,1.63705]
[1727193194444,0.38205,2617.6,2617.4,0.9751]
[1727193194742,2.39,2617.7,2617.3,4.4628]
[1727193194939,2.39,2617.7,2617.5,0.38205]
[1727193195237,0.38203,2617.7,2617.4,4.69744802]
[1727193195436,3.2078,2617.8,2617.4,4.69744802]
[1727193195437,0.38204,2617.6,2617.4,4.69744802]
[1727193196141,0.38204,2617.7,2617.4,4.69745802]
[1727193196536,3.58983,2617.8,2617.5,0.38205]
[1727193196732,0.38203,2617.7,2617.5,0.38205]
[1727193196938,3.58982,2617.8,2617.5,0.38205]
[1727193197545,0.38203,2617.7,2617.5,0.38205]
[1727193198145,3.58982,2617.8,2617.6,0.38204]
[1727193198334,3.2078,2617.8,2617.6,0.38204]
[1727193198643,1.9276,2618.0,2617.5,2.39]
[1727193198852,1.9276,2618.0,2617.8,0.38201]
[1727193199038,2.30959,2618.0,2617.8,0.38201]
[1727193200142,0.38201,2617.9,2617.7,0.38202]
[1727193200341,2.3096,2618.0,2617.7,0.38202]
[1727193200547,0.382,2617.9,2617.7,0.38202]
[1727193201543,1.9276,2618.0,2617.4,5.13616763]
[1727193201744,1.34919,2618.0,2617.8,0.38201]
[1727193202738,1.34919,2618.0,2617.4,4.18099763]
[1727193202739,0.382,2617.9,2617.7,0.38202]
[1727193202940,0.38201,2617.9,2617.7,0.38202]
[1727193203846,0.38203,2617.8,2617.4,4.18099763]
[1727193204047,0.38203,2617.8,2617.5,1.254]
[1727193204340,0.38203,2617.8,2617.6,0.38204]
[1727193204945,0.38203,2617.7,2617.5,1.63605]
[1727193205154,0.38202,2617.8,2617.6,0.38204]
[1727193205450,0.38203,2617.8,2617.6,0.38204]
[1727193205639,3.3572,2618.0,2617.3,3.2078]
[1727193205839,2.39,2617.6,2617.3,3.2078]
[1727193206151,0.38207,2617.5,2617.3,4.84389]
[1727193206347,0.38207,2617.4,2617.3,3.2078]
[1727193206650,0.95513,2617.6,2617.2,1.3193]
[1727193206846,0.95506,2617.8,2617.2,2.1912]
[1727193207043,0.38205,2617.6,2617.2,2.1912]
[1727193207243,0.38205,2617.6,2617.4,0.38206]
[1727193207445,0.38203,2617.7,2617.5,0.38205]
[1727193207645,0.38204,2617.7,2617.5,0.38205]
[1727193208052,0.95506,2617.8,2617.7,0.38203]
[1727193208053,0.38202,2617.8,2617.7,0.38203]
[1727193208358,0.38202,2617.8,2617.6,0.38204]
[1727193208650,0.38203,2617.7,2617.6,0.38204]